fUST/lending_fUST_20250524
["ID","MTS","AMOUNT","RATE_DAILY","PERIOD"]
[362142321,1748033437422,-430.0,0.00016438,2]
[362142322,1748033437432,-430.0,0.00016438,2]
[362142323,1748033437445,-430.0,0.00016438,2]
[362142324,1748033437455,-430.0,0.00016438,2]
[362142325,1748033437465,-430.0,0.00016438,2]
[362142326,1748033437475,-430.0,0.00016438,2]
[362142327,1748033437484,-430.0,0.00016438,2]
[362142328,1748033437497,-430.0,0.00016438,2]
[362142329,1748033437507,-430.0,0.00016438,2]
[362142330,1748033437516,-400.0,0.00016438,2]
[362142331,1748033437526,-430.0,0.00016438,2]
[362142332,1748033437536,-450.0,0.00016438,2]
[362142333,1748033437546,-403.21878443,0.00016438,2]
[362142334,1748033437555,-430.0,0.00016438,2]
[362142335,1748033437566,-430.0,0.00016438,2]
[362142336,1748033437576,-151.0,0.00016438,2]
[362142337,1748033437585,-151.0,0.00016438,2]
[362142338,1748033437595,-151.0,0.00016438,2]
[362142339,1748033437605,-151.0,0.00016438,2]
[362142340,1748033437615,-430.0,0.00016438,2]
[362142341,1748033437625,-151.0,0.00016438,2]
[362142342,1748033437635,-151.0,0.00016438,2]
[362142343,1748033437645,-151.0,0.00016438,2]
[362142344,1748033437654,-160.10388202,0.00016438,2]
[362142345,1748033437664,-430.0,0.00016438,2]
[362142346,1748033437674,-151.0,0.00016438,2]
[362142347,1748033437684,-430.0,0.00016438,2]
[362142348,1748033437694,-478.0,0.00016438,2]
[362142349,1748033437704,-560.71,0.00016438,2]
[362142350,1748033437714,-430.0,0.00016438,2]
[362142351,1748033437723,-374.484381,0.00016438,2]
[362142352,1748033437734,-430.0,0.00016438,2]
[362142353,1748033437744,-430.0,0.00016438,2]
[362142354,1748033437754,-430.0,0.00016438,2]
[362142355,1748033437764,-430.0,0.00016438,2]
[362142356,1748033437773,-151.47095574,0.00016438,2]
[362142357,1748033437783,-450.0,0.00016438,2]
[362142358,1748033437793,-450.0,0.00016438,2]
[362142359,1748033437803,-430.0,0.00016438,2]
[362142361,1748033437814,-430.0,0.00016438,2]
[362142362,1748033437823,-401.49548055,0.00016438,2]
[362142363,1748033437834,-430.0,0.00016438,2]
[362142364,1748033437844,-430.0,0.00016438,2]
[362142365,1748033437854,-430.0,0.00016438,2]
[362142366,1748033437864,-401.31841447,0.00016438,2]
[362142368,1748033437874,-430.0,0.00016438,2]
[362142369,1748033437884,-430.0,0.00016438,2]
[362142370,1748033437894,-430.0,0.00016438,2]
[362142372,1748033437904,-430.0,0.00016438,2]
[362142373,1748033437914,-430.0,0.00016438,2]
[362142374,1748033437925,-371.77,0.00016438,2]
[362142375,1748033437936,-430.0,0.00016438,2]
[362142377,1748033437946,-430.0,0.00016438,2]
[362142378,1748033437955,-562.22968061,0.00016438,2]
[362142379,1748033437965,-350.0,0.00016438,2]
[362142380,1748033437975,-430.0,0.00016438,2]
[362142381,1748033437988,-401.70462869,0.00016438,2]
[362142382,1748033437999,-430.0,0.00016438,2]
[362142383,1748033438008,-430.0,0.00016438,2]
[362142384,1748033438019,-450.0,0.00016438,2]
[362142385,1748033438029,-430.0,0.00016438,2]
[362142386,1748033438040,-430.0,0.00016438,2]
[362142387,1748033438051,-430.0,0.00016438,2]
[362142388,1748033438061,-402.54833888,0.00016438,2]
[362142389,1748033438071,-243.7078941,0.00016438,2]
[362142390,1748033438082,-430.0,0.00016438,2]
[362142391,1748033438093,-430.0,0.00016438,2]
[362142392,1748033438104,-430.63332418,0.00016438,2]
[362142393,1748033438113,-431.70411064,0.00016438,2]
[362142394,1748033438124,-430.0,0.00016438,2]
[362142395,1748033438133,-431.01518832,0.00016438,2]
[362142397,1748033438143,-430.0,0.00016438,2]
[362142398,1748033438153,-430.0,0.00016438,2]
[362142399,1748033438163,-350.0,0.00016438,2]
[362142400,1748033438173,-431.59099238,0.00016438,2]
[362142401,1748033438183,-430.0,0.00016438,2]
[362142403,1748033438193,-430.0,0.00016438,2]
[362142405,1748033438203,-300.0,0.00016438,2]
[362142407,1748033438213,-430.0,0.00016438,2]
[362142409,1748033438223,-430.0,0.00016438,2]
[362142411,1748033438232,-430.0,0.00016438,2]
[362142413,1748033438242,-430.0,0.00016438,2]
[362142415,1748033438252,-430.0,0.00016438,2]
[362142416,1748033438261,-431.38325702,0.00016438,2]
[362142419,1748033438271,-430.0,0.00016438,2]
[362142421,1748033438281,-430.0,0.00016438,2]
[362142422,1748033438291,-430.0,0.00016438,2]
[362142425,1748033438301,-151.0,0.00016438,2]
[362142427,1748033438311,-430.0,0.00016438,2]
[362142429,1748033438321,-430.0,0.00016438,2]
[362142431,1748033438331,-404.0858259,0.00016438,2]
[362142432,1748033438341,-151.0,0.00016438,2]
[362142435,1748033438350,-210.64309618,0.00016438,2]
[362142437,1748033438361,-450.0,0.00016438,2]
[362142439,1748033438373,-433.04701437,0.00016438,2]
[362142441,1748033438383,-430.38343632,0.00016438,2]
[362142444,1748033438404,-500.0,0.00016438,2]
[362142447,1748033438414,-430.51694996,0.00016438,2]
[362142450,1748033438424,-430.0,0.00016438,2]
[362142453,1748033438434,-430.91758074,0.00016438,2]
[362142455,1748033438445,-430.0,0.00016438,2]
[362142457,1748033438455,-151.0,0.00016465,2]
[362142459,1748033438465,-151.0,0.00016465,2]
[362142461,1748033438476,-500.0,0.00016473,2]
[362142463,1748033438486,-215.0738,0.00016631,2]
[362142465,1748033438496,-151.0,0.00016708,2]
[362142467,1748033438506,-420.0,0.00016708,2]
[362142469,1748033438516,-212.48480548,0.00016712,3]
[362142471,1748033438527,-12647.66147447,0.00016712,3]
[362142492,1748033438681,-15670.59775717,0.00016712,3]
[362142494,1748033438694,-350.0,0.00016712,2]
[362142496,1748033438704,-430.0,0.00016712,2]
[362142498,1748033438714,-430.0,0.00016712,2]
[362142500,1748033438724,-225.63193988,0.00016712,2]
[362142502,1748033438734,-430.0,0.00016712,2]
[362142504,1748033438743,-430.0,0.00016712,2]
[362142506,1748033438753,-468.67857071,0.00016712,2]
[362142508,1748033438763,-217.89240259,0.00016712,2]
[362142512,1748033438784,-500.0,0.00016438,2]
[362142514,1748033438794,-212.10759741,0.00016712,2]
[362142516,1748033438804,-321.85974206,0.00016712,2]
[362142518,1748033438814,-431.40797173,0.00016712,2]
[362142520,1748033438824,-432.98730845,0.00016712,2]
[362142522,1748033438834,-433.60472095,0.00016712,2]
[362142524,1748033438844,-326.02652564,0.00016712,2]
[362142526,1748033438854,-347.19892321,0.00016712,2]
[362142528,1748033438864,-430.0,0.00016712,2]
[362142530,1748033438875,-430.0,0.00016712,2]
[362142532,1748033438884,-430.0,0.00016712,2]
[362142534,1748033438894,-148.86221045,0.00016712,2]
[362142625,1748033440605,-575.50391567,0.00016274,2]
[362142650,1748033443431,-4424.49608433,0.00016274,2]
[362142652,1748033443445,-500.0,0.00016437,2]
[362142655,1748033443455,-199.93168083,0.00016437,2]
[362142657,1748033443465,-500.0,0.00016438,2]
[362142659,1748033443475,-500.0,0.00016438,2]
[362142661,1748033443484,-500.0,0.00016438,2]
[362142663,1748033443494,-500.0,0.00016438,2]
[362142665,1748033443503,-500.0,0.00016438,2]
[362142667,1748033443512,-500.0,0.00016438,2]
[362142669,1748033443521,-500.0,0.00016438,2]
[362142671,1748033443531,-500.0,0.00016438,2]
[362142673,1748033443542,-500.0,0.00016438,2]
[362142676,1748033443551,-500.0,0.00016438,2]
[362142678,1748033443560,-500.0,0.00016438,2]
[362142680,1748033443571,-500.0,0.00016438,2]
[362142682,1748033443580,-430.0,0.00016438,2]
[362142684,1748033443590,-430.0,0.00016438,2]
[362142686,1748033443599,-500.0,0.00016711,2]
[362142688,1748033443608,-500.0,0.00016711,2]
[362142690,1748033443619,-500.0,0.00016711,2]
[362142692,1748033443628,-351.28,0.00016711,2]
[362142694,1748033443638,-281.13778955,0.00016712,2]
[362142696,1748033443650,-406.99774531,0.00016712,2]
[362142698,1748033443659,-430.0,0.00016712,2]
[362142700,1748033443668,-390.0,0.00016712,2]
[362142702,1748033443678,-362.32075423,0.00016712,2]
[362142704,1748033443688,-430.0,0.00016712,2]
[362142706,1748033443697,-495.49444282,0.00016712,2]
[362142708,1748033443707,-430.0,0.00016712,2]
[362142710,1748033443717,-150.58430178,0.00016712,2]
[362142712,1748033443727,-343.64927178,0.00016712,2]
[362142714,1748033443737,-430.0,0.00016712,2]
[362142716,1748033443747,-430.0,0.00016712,2]
[362142718,1748033443756,-306.8816199,0.00016712,2]
[362142720,1748033443766,-409.15984828,0.00016712,2]
[362142723,1748033443776,-430.0,0.00016712,2]
[362142725,1748033443786,-430.0,0.00016712,2]
[362142727,1748033443795,-430.0,0.00016712,2]
[362142728,1748033443805,-161.79,0.00016712,2]
[362142731,1748033443815,-430.0,0.00016712,2]
[362142733,1748033443826,-430.0,0.00016712,2]
[362142735,1748033443835,-430.0,0.00016712,2]
[362142736,1748033443845,-430.0,0.00016712,2]
[362142739,1748033443855,-430.0,0.00016712,2]
[362142741,1748033443865,-430.0,0.00016712,2]
[362142743,1748033443875,-430.0,0.00016712,2]
[362142745,1748033443885,-430.0,0.00016712,2]
[362142747,1748033443894,-430.0,0.00016712,2]
[362142749,1748033443904,-388.08404812,0.00016712,2]
[362142751,1748033443913,-430.0,0.00016712,2]
[362142753,1748033443923,-435.52434879,0.00016712,2]
[362142755,1748033443933,-382.17911374,0.00016712,2]
[362142757,1748033443942,-430.0,0.00016712,2]
[362142759,1748033443952,-430.0,0.00016712,2]
[362142761,1748033443961,-430.0,0.00016712,2]
[362142763,1748033443971,-430.0,0.00016712,2]
[362142765,1748033443980,-284.4261781,0.00016712,2]
[362142767,1748033443989,-430.0,0.00016712,2]
[362142769,1748033443999,-336.6361336,0.00016712,2]
[362142771,1748033444009,-430.0,0.00016712,2]
[362142773,1748033444019,-345.4640596,0.00016712,2]
[362142775,1748033444029,-465.04,0.00016712,2]
[362142777,1748033444040,-430.0,0.00016712,2]
[362142779,1748033444050,-430.0,0.00016712,2]
[362142781,1748033444059,-155.82,0.00016712,2]
[362142783,1748033444069,-434.42318492,0.00016712,2]
[362142785,1748033444078,-430.0,0.00016712,2]
[362142787,1748033444088,-432.22,0.00016712,2]
[362142790,1748033444098,-198.67538152,0.00016712,2]
[362142792,1748033444107,-430.0,0.00016712,2]
[362142794,1748033444117,-430.0,0.00016712,2]
[362142796,1748033444126,-430.0,0.00016712,2]
[362142798,1748033444135,-505.6,0.00016712,2]
[362142800,1748033444145,-430.0,0.00016712,2]
[362142802,1748033444154,-430.0,0.00016712,2]
[362142804,1748033444164,-292.15838293,0.00016712,2]
[362142806,1748033444173,-430.0,0.00016712,2]
[362142808,1748033444182,-430.0,0.00016712,2]
[362142810,1748033444192,-430.0,0.00016712,2]
[362142812,1748033444201,-430.0,0.00016712,2]
[362142814,1748033444211,-430.0,0.00016712,2]
[362142816,1748033444220,-430.0,0.00016712,2]
[362142818,1748033444230,-158.1884786,0.00016712,2]
[362142820,1748033444240,-432.26426022,0.00016712,2]
[362142822,1748033444249,-172.86308581,0.00016712,2]
[362142824,1748033444258,-430.0,0.00016712,2]
[362142826,1748033444268,-259.93989196,0.00016712,2]
[362142828,1748033444277,-430.0,0.00016712,2]
[362142830,1748033444287,-430.0,0.00016712,2]
[362142832,1748033444296,-554.05,0.00016712,2]
[362142834,1748033444306,-430.0,0.00016712,2]
[362142836,1748033444316,-430.0,0.00016712,2]
[362142838,1748033444325,-500.0,0.00016712,2]
[362142840,1748033444335,-430.0,0.00016712,2]
[362142842,1748033444345,-430.0,0.00016712,2]
[362142844,1748033444355,-430.0,0.00016712,2]
[362142846,1748033444367,-430.0,0.00016712,2]
[362142848,1748033444378,-430.0,0.00016712,2]
[362142850,1748033444388,-430.0,0.00016712,2]
[362142853,1748033444397,-430.0,0.00016712,2]
[362142855,1748033444408,-430.0,0.00016712,2]
[362142857,1748033444418,-193.97783902,0.00016712,2]
[362142859,1748033444428,-430.0,0.00016712,2]
[362142861,1748033444439,-430.0,0.00016712,2]
[362142863,1748033444450,-430.0,0.00016712,2]
[362142865,1748033444460,-430.0,0.00016712,2]
[362142867,1748033444469,-430.0,0.00016712,2]
[362142869,1748033444479,-295.06,0.00016712,2]
[362142871,1748033444489,-151.72,0.00016712,2]
[362142873,1748033444499,-430.0,0.00016712,2]
[362142875,1748033444509,-430.0,0.00016712,2]
[362142877,1748033444518,-163.31,0.00016712,2]
[362142879,1748033444528,-151.0,0.00016712,2]
[362142880,1748033444538,-151.0,0.00016712,2]
[362142881,1748033444549,-430.0,0.00016712,2]
[362142882,1748033444558,-430.0,0.00016712,2]
[362142883,1748033444568,-430.0,0.00016712,2]
[362142884,1748033444578,-430.0,0.00016712,2]
[362142885,1748033444587,-430.0,0.00016712,2]
[362142886,1748033444597,-430.0,0.00016712,2]
[362142887,1748033444607,-430.0,0.00016712,2]
[362142888,1748033444617,-430.0,0.00016712,2]
[362142889,1748033444627,-430.0,0.00016712,2]
[362142890,1748033444636,-430.0,0.00016712,2]
[362142891,1748033444647,-359.14,0.00016712,2]
[362142892,1748033444658,-430.0,0.00016712,2]
[362142893,1748033444667,-430.0,0.00016712,2]
[362142894,1748033444677,-430.0,0.00016712,2]
[362142895,1748033444686,-430.0,0.00016712,2]
[362142896,1748033444696,-430.0,0.00016712,2]
[362142897,1748033444706,-430.0,0.00016712,2]
[362142898,1748033444715,-430.0,0.00016712,2]
[362142899,1748033444725,-430.0,0.00016712,2]
[362142900,1748033444735,-430.0,0.00016712,2]
[362142901,1748033444745,-430.0,0.00016712,2]
[362142902,1748033444754,-430.0,0.00016712,2]
[362142903,1748033444764,-430.0,0.00016712,2]
[362142904,1748033444773,-300.0,0.00016712,2]
[362142905,1748033444783,-430.0,0.00016712,2]
[362142906,1748033444792,-430.0,0.00016712,2]
[362142907,1748033444801,-443.68,0.00016712,2]
[362142908,1748033444811,-157.0640115,0.00016795,2]
[362142909,1748033444821,-158.2090311,0.00016795,2]
[362142910,1748033444831,-158.2090311,0.00016795,2]
[362142911,1748033444842,-158.2090311,0.00016795,2]
[362142912,1748033444851,-500.83744052,0.00016824,2]
[362142913,1748033444861,-500.0,0.00016856,2]
[362142914,1748033444870,-500.0,0.00016856,2]
[362142915,1748033444879,-500.0,0.00016856,2]
[362142917,1748033444889,-223.35908659,0.00016856,2]
[362142918,1748033444899,-543.74102445,0.00016986,2]
[362142920,1748033444908,-400.0,0.00016986,2]
[362142922,1748033444918,-430.0,0.00016986,2]
[362142923,1748033444927,-440.00139921,0.00016986,2]
[362142924,1748033444937,-327.65218454,0.00016986,2]
[362142925,1748033444947,-436.44515137,0.00016986,2]
[362142926,1748033444956,-430.0,0.00016986,2]
[362142927,1748033444966,-433.43119107,0.00016986,2]
[362142928,1748033445078,-6.00576966,0.00016986,2]
[362142929,1748033445092,-423.99423034,0.00016986,2]
[362142930,1748033445102,-430.0,0.00016986,2]
[362142931,1748033445111,-436.83759375,0.00016986,2]
[362142932,1748033445120,-369.03,0.00016986,2]
[362142933,1748033445131,-430.0,0.00016986,2]
[362142934,1748033445141,-152.49781562,0.00016986,2]
[362142935,1748033445150,-401.21415758,0.00016986,2]
[362142936,1748033445159,-398.58420164,0.00016986,2]
[362142937,1748033445169,-430.0,0.00016986,2]
[362142938,1748033445179,-374.59729179,0.00016986,2]
[362142939,1748033445189,-430.0,0.00016986,2]
[362142940,1748033445198,-436.67164634,0.00016986,2]
[362142941,1748033445207,-246.08185958,0.00016986,2]
[362142942,1748033445216,-320.0,0.00016986,2]
[362142943,1748033445227,-273.86,0.00016986,2]
[362142944,1748033445236,-430.0,0.00016986,2]
[362142945,1748033445246,-425.0,0.00016986,2]
[362142946,1748033445256,-430.0,0.00016986,2]
[362142947,1748033445266,-430.0,0.00016986,2]
[362142948,1748033445276,-525.09977558,0.00016986,2]
[362142949,1748033445287,-427.77189891,0.00016986,2]
[362142950,1748033445296,-328.18,0.00016986,2]
[362142951,1748033445306,-430.0,0.00016986,2]
[362142952,1748033445316,-430.0,0.00016986,2]
[362142953,1748033445326,-430.0,0.00016986,2]
[362142954,1748033445336,-216.82332858,0.00016986,2]
[362142955,1748033445346,-430.0,0.00016986,2]
[362142956,1748033445356,-430.0,0.00016986,2]
[362142957,1748033445368,-604.85,0.00016986,2]
[362142958,1748033445378,-430.0,0.00016986,2]
[362142959,1748033445388,-430.0,0.00016986,2]
[362142960,1748033445399,-430.0,0.00016986,2]
[362142961,1748033445410,-430.0,0.00016986,2]
[362142962,1748033445419,-430.0,0.00016986,2]
[362142963,1748033445429,-430.0,0.00016986,2]
[362142964,1748033445439,-430.0,0.00016986,2]
[362142965,1748033445450,-574.74,0.00016986,2]
[362142966,1748033445462,-430.0,0.00016986,2]
[362142967,1748033445473,-430.0,0.00016986,2]
[362142968,1748033445483,-448.55795272,0.00016986,2]
[362142969,1748033445493,-430.0,0.00016986,2]
[362142970,1748033445503,-430.0,0.00016986,2]
[362142971,1748033445512,-430.0,0.00016986,2]
[362142972,1748033445523,-430.0,0.00016986,2]
[362142973,1748033445533,-430.0,0.00016986,2]
[362142974,1748033445543,-430.0,0.00016986,2]
[362142975,1748033445552,-170.00000007,0.00016986,2]
[362142976,1748033445562,-430.0,0.00016986,2]
[362142977,1748033445573,-430.0,0.00016986,2]
[362142978,1748033445582,-430.0,0.00016986,2]
[362142979,1748033445591,-430.0,0.00016986,2]
[362142980,1748033445601,-430.0,0.00016986,2]
[362142981,1748033445610,-430.0,0.00016986,2]
[362142982,1748033445621,-430.0,0.00016986,2]
[362142983,1748033445631,-430.0,0.00016986,2]
[362142984,1748033445641,-437.63254008,0.00016986,2]
[362142985,1748033445650,-430.0,0.00016986,2]
[362142986,1748033445660,-430.0,0.00016986,2]
[362142987,1748033445670,-430.0,0.00016986,2]
[362142988,1748033445680,-430.0,0.00016986,2]
[362142989,1748033445689,-430.0,0.00016986,2]
[362142990,1748033445699,-504.71,0.00016986,2]
[362142991,1748033445709,-500.0,0.00017021,2]
[362142992,1748033445720,-430.0,0.0001726,2]
[362142993,1748033445730,-422.62566989,0.0001726,2]
[362142994,1748033445741,-546.47573796,0.0001726,2]
[362142995,1748033445751,-437.91108308,0.0001726,2]
[362142996,1748033445760,-458.19,0.0001726,2]
[362142997,1748033445771,-430.0,0.0001726,2]
[362142998,1748033445781,-438.1340368,0.0001726,2]
[362142999,1748033445791,-430.0,0.0001726,2]
[362143000,1748033445801,-430.0,0.0001726,2]
[362143001,1748033445810,-409.94679946,0.0001726,2]
[362143002,1748033445821,-430.0,0.0001726,2]
[362143003,1748033445832,-430.0,0.0001726,2]
[362143004,1748033445842,-430.0,0.0001726,2]
[362143005,1748033445852,-430.0,0.0001726,2]
[362143006,1748033445862,-430.0,0.0001726,2]
[362143007,1748033445872,-430.0,0.0001726,2]
[362143008,1748033445882,-430.0,0.0001726,2]
[362143009,1748033445894,-430.0,0.0001726,2]
[362143010,1748033445903,-430.0,0.0001726,2]
[362143011,1748033445913,-430.0,0.0001726,2]
[362143012,1748033445924,-430.0,0.0001726,2]
[362143013,1748033445935,-169.69,0.0001726,2]
[362143014,1748033445944,-430.0,0.0001726,2]
[362143015,1748033445954,-430.0,0.0001726,2]
[362143016,1748033445964,-430.0,0.0001726,2]
[362143017,1748033445974,-430.0,0.0001726,2]
[362143018,1748033445984,-430.0,0.0001726,2]
[362143019,1748033445994,-430.0,0.0001726,2]
[362143020,1748033446006,-430.0,0.0001726,2]
[362143021,1748033446016,-830.58459071,0.000173,2]
[362143022,1748033446026,-830.58459049,0.000173,2]
[362143023,1748033446036,-500.0,0.00017404,2]
[362143024,1748033446046,-1000.0,0.00017404,2]
[362143026,1748033446055,-830.58459049,0.00017452,2]
[362143027,1748033446065,-3400.0,0.000175,2]
[362143028,1748033446075,-430.0,0.00017534,2]
[362143029,1748033446085,-430.0,0.00017534,2]
[362143030,1748033446097,-407.63,0.00017534,2]
[362143031,1748033446107,-369.0,0.00017534,2]
[362143032,1748033446117,-430.0,0.00017534,2]
[362143033,1748033446126,-430.0,0.00017534,2]
[362143034,1748033446137,-430.0,0.00017534,2]
[362143035,1748033446146,-430.0,0.00017534,2]
[362143036,1748033446156,-430.0,0.00017534,2]
[362143037,1748033446166,-430.0,0.00017534,2]
[362143038,1748033446175,-430.0,0.00017534,2]
[362143039,1748033446185,-411.33,0.00017534,2]
[362143040,1748033446195,-430.0,0.00017534,2]
[362143042,1748033446205,-318.03,0.00017534,2]
[362143044,1748033446214,-430.0,0.00017534,2]
[362143046,1748033446224,-292.10293578,0.00017534,2]
[362143048,1748033446233,-198.97370553,0.00017534,2]
[362143050,1748033446243,-1138.9714458,0.00017616,2]
[362143052,1748033446253,-830.58459049,0.00017728,2]
[362143053,1748033446263,-820.84,0.00017798,3]
[362143054,1748033446272,-410.42,0.00017798,3]
[362143055,1748033446281,-379.36,0.00017808,2]
[362143056,1748033446291,-235.46,0.00017808,2]
[362143057,1748033446300,-430.0,0.00017808,2]
[362143058,1748033446310,-430.0,0.00017808,2]
[362143059,1748033446320,-430.0,0.00017808,2]
[362143060,1748033446330,-430.0,0.00017808,2]
[362143061,1748033446340,-430.0,0.00017808,2]
[362143062,1748033446350,-430.0,0.00017808,2]
[362143063,1748033446361,-430.0,0.00017808,2]
[362143064,1748033446374,-1000.0,0.00017951,2]
[362143065,1748033446384,-187.36639068,0.00017979,2]
[362143066,1748033446394,-223.0315306,0.00018,2]
[362143067,1748033446403,-830.58459049,0.00018003,2]
[362143068,1748033446414,-430.0,0.00018082,2]
[362143069,1748033446423,-430.0,0.00018082,2]
[362143070,1748033446434,-430.0,0.00018082,2]
[362143071,1748033446445,-430.0,0.00018082,2]
[362143072,1748033446455,-430.0,0.00018082,2]
[362143073,1748033446465,-560.2,0.00018082,2]
[362143074,1748033446474,-430.0,0.00018082,2]
[362143075,1748033446483,-830.58459049,0.00018279,2]
[362143076,1748033446494,-587.0,0.00018281,2]
[362143077,1748033446503,-455.68,0.00018356,2]
[362143078,1748033446513,-430.0,0.00018356,2]
[362143079,1748033446523,-430.0,0.00018356,2]
[362143080,1748033446534,-430.0,0.00018356,2]
[362143081,1748033446544,-430.0,0.00018356,2]
[362143082,1748033446554,-430.0,0.00018356,2]
[362143083,1748033446563,-830.58459049,0.00018555,2]
[362143084,1748033446573,-430.0,0.0001863,2]
[362143085,1748033446583,-430.0,0.0001863,2]
[362143086,1748033446593,-430.0,0.0001863,2]
[362143087,1748033446602,-518.55697088,0.0001863,2]
[362143088,1748033446612,-430.0,0.0001863,2]
[362143089,1748033446622,-422.85710789,0.00018694,2]
[362143090,1748033446632,-160.0,0.00018694,2]
[362143091,1748033446642,-894.64583333,0.00018694,2]
[362143092,1748033446652,-212.48480548,0.00018694,2]
[362143093,1748033446662,-160.0,0.00018698,2]
[362143094,1748033446671,-12647.66147447,0.00018698,2]
[362143095,1748033446681,-830.58459049,0.00018831,2]
[362143096,1748033446691,-430.0,0.00018904,2]
[362143097,1748033446701,-430.0,0.00018904,2]
[362143098,1748033446711,-430.0,0.00018904,2]
[362143099,1748033446720,-430.0,0.00018904,2]
[362143100,1748033446731,-4000.0,0.0001898,2]
[362143101,1748033446744,-960.0,0.00019084,2]
[362143102,1748033446754,-2233.0,0.00019084,2]
[362143103,1748033446772,-707.0,0.00019084,2]
[362143104,1748033446786,-830.58459049,0.00019107,2]
[362143105,1748033446798,-430.0,0.00019178,2]
[362143106,1748033446808,-430.0,0.00019178,2]
[362143107,1748033446818,-430.0,0.00019178,2]
[362143108,1748033446828,-430.0,0.00019178,2]
[362143109,1748033446838,-151.0,0.00019178,2]
[362143110,1748033446848,-231.28369723,0.00019369,2]
[362143111,1748033446858,-830.58459049,0.00019383,2]
[362143112,1748033446869,-430.0,0.00019452,2]
[362143113,1748033446879,-430.0,0.00019452,2]
[362143114,1748033446890,-430.0,0.00019452,2]
[362143115,1748033446900,-430.0,0.00019452,2]
[362143116,1748033446910,-3300.0,0.000195,2]
[362143117,1748033446920,-187.36639068,0.00019619,2]
[362143118,1748033446930,-830.58459049,0.00019659,2]
[362143119,1748033446940,-430.0,0.00019726,2]
[362143120,1748033446951,-279.34759841,0.00019726,2]
[362143121,1748033446961,-430.0,0.00019726,2]
[362143122,1748033446971,-430.0,0.00019726,2]
[362143123,1748033446981,-830.58459049,0.00019934,2]
[362143124,1748033446991,-160.0,0.00019993,2]
[362143125,1748033447001,-154.70078677,0.0002,4]
[362143126,1748033447011,-430.0,0.0002,2]
[362143127,1748033447021,-430.0,0.0002,2]
[362143128,1748033447031,-430.0,0.0002,2]
[362143129,1748033447040,-830.58459049,0.0002021,2]
[362143130,1748033447050,-430.0,0.00020273,2]
[362143131,1748033447060,-555.44091043,0.00020273,2]
[362143132,1748033447070,-444.92,0.00020273,2]
[362143133,1748033447080,-830.58459049,0.00020486,3]
[362143134,1748033447090,-430.0,0.00020547,2]
[362143135,1748033447100,-641.01871866,0.00020548,2]
[362143136,1748033447111,-641.01871866,0.00020548,2]
[362143137,1748033447122,-641.01871866,0.00020548,2]
[362143138,1748033447132,-641.01871866,0.00020548,2]
[362143139,1748033447142,-641.01871866,0.00020548,2]
[362143140,1748033447153,-641.01871866,0.00020548,2]
[362143141,1748033447164,-641.01871866,0.00020548,2]
[362143142,1748033447174,-641.01871866,0.00020548,2]
[362143143,1748033447184,-641.01871866,0.00020548,2]
[362143144,1748033447195,-641.01871866,0.00020548,2]
[362143145,1748033447205,-641.01871866,0.00020548,2]